Cogmind - Beta 15 @@@ ROGUE MODE // 2025.06.02 @ 11:10:21 Player: SALT Result: Destroyed by YI-UF0 with YI-UF0's Doublenader Performance ------------- Evolutions (0) 0 Regions Visited (4) 800 Robots Destroyed (0) 0 Value Destroyed (0) 0 Prototype IDs (23) 460 Alien Tech Used (0) 0 Bonus (300) 300 TOTAL SCORE: 1560 Bonus ------- Aligned with FarCom 300 Cogmind --------- Core Integrity 0/250 Matter 275/300 Energy 100/100 System Corruption 0% Temperature Cool (0) Movement Core (100) Ox1 Location -9/Mines Parts ------- > --- POWER (1) -------- (None) > --- PROPULSION (2) --- (None) > --- UTILITY (2) ------ Small Storage Unit > --- WEAPON (2) ------- (None) > --- INVENTORY (8) ---- Cloak of Protection AWS/Thermal XL Autogun Array Peak State ------------ > --- POWER ------------ Ion Engine > --- PROPULSION ------- Aluminum Leg Aluminum Leg > --- UTILITY ---------- Small Storage Unit Weapon Shielding > --- WEAPON ----------- EM Pulse Gun Light Assault Rifle > --- INVENTORY -------- Light Ion Engine Cloak of Protection AWS/Thermal XL Autogun Array [Rating: 13] Favorites ----------- Power Ion Engine Engine Ion Engine Propulsion Aluminum Leg Leg Aluminum Leg Utility Small Storage Unit Storage Small Storage Unit Protection Weapon Shielding Weapon Light Assault Rifle Energy Gun EM Pulse Gun Ballistic Gun Light Assault Rifle Launcher Grenade Launcher Build | -11 -10 -10 -10 -9 ------- Run | Yrd Mat Min Exi Min Slots Evolved . | . . . . . Power . | . . . . . Propulsion . | . . . . . Utility . | . . . . . Weapon . | . . . . . Parts Attached 8 | 6 1 . . 1 Power 1 | 1 . . . . Engine 1 | 1 . . . . Core . | . . . . . Reactor . | . . . . . Propulsion 2 | 2 . . . . Treads . | . . . . . Leg 2 | 2 . . . . Wheel . | . . . . . Hover . | . . . . . Flight . | . . . . . Utility 2 | 1 1 . . . Device . | . . . . . Storage 1 | 1 . . . . Processor . | . . . . . Hackware . | . . . . . Protection 1 | . 1 . . . Artifact . | . . . . . Weapon 3 | 2 . . . 1 Energy Gun 1 | 1 . . . . Energy Cannon . | . . . . . Ballistic Gun 1 | 1 . . . . Ballistic Cannon . | . . . . . Launcher 1 | . . . . 1 Special Weapon . | . . . . . Impact Weapon . | . . . . . Slashing Weapon . | . . . . . Piercing Weapon . | . . . . . Special Melee Weapon . | . . . . . Unidentified Prototypes . | . . . . . Parts Lost 7 | . . . . 7 Power 1 | . . . . 1 Propulsion 2 | . . . . 2 Utility 1 | . . . . 1 Weapon 3 | . . . . 3 Highest Loss Streak 7 | . . . . 7 To Critical Strikes . | . . . . . Average Backups 4 | 3 6 6 4 3 Power . | . 1 1 1 . Propulsion 1 | 2 4 4 1 . Utility . | . . . . 1 Weapon 1 | . 1 1 1 2 Tool/Special . | . . . . . Unused Backups 9 | . . . 5 4 Power 1 | . . . . 1 Propulsion 4 | . . . 4 . Utility 1 | . . . . 1 Weapon 3 | . . . 1 2 Tool/Special . | . . . . . Average Slot Usage (%) 98 | . 90 100 100 95 Engine 14 | . 14 14 14 14 Leg 27 | . 28 28 28 23 Storage 14 | . 14 14 14 14 Protection 12 | . 5 14 14 14 Energy Gun 13 | . 14 14 14 11 Ballistic Gun 14 | . 14 14 14 14 Peak Build Rating 13 | 6 7 7 13 13 Average Rating 9 | 4 6 7 10 12 On Entrance 6 | . 6 7 7 13 Naked Turns . | . . . . . Heaviest Build 14 | 13 14 14 14 14 Greatest Support 20 | 20 20 20 20 20 Greatest Overweight (x) . | . . . . . Average Overweight (x) . | . . . . . Largest Inventory Capacity 8 | 8 8 8 8 8 Average Capacity 7 | 6 8 8 8 8 Most Carried 8 | 7 6 6 8 8 Average Carried 6 | 3 6 6 7 7 Final Capacity 8 | 8 8 8 8 8 Final Carried 8 | 6 6 6 8 7 Class Distribution -------------------- 100% | Mutant Dominant Class ---------------- Mutant | -10/Materials Mutant | -10/Mines Mutant | -10/Exiles Mutant | -9/Mines Resources | -11 -10 -10 -10 -9 ----------- Run | Yrd Mat Min Exi Min Matter Collected 260 | 260 . . . . Remotely . | . . . . . Salvage Created 10 | . . . . 10 Parts . | . . . . . Haulers Intercepted . | . . . . . Recyclers Shooed . | . . . . . Parts Field Recycled . | . . . . . Retrieved Matter . | . . . . . Parts Self-Destructed . | . . . . . Prevented . | . . . . . Kills | -11 -10 -10 -10 -9 ------- Run | Yrd Mat Min Exi Min Combat Hostiles Destroyed 4 | . . . . 4 AOE 4 | . . . . 4 Classes Destroyed 1 | . . . . 1 Assembled 4 | . . . . 4 Best Kill Streak 4 | . . . . 4 Combat Bots Only 4 | . . . . 4 Max Kills in Single Turn 3 | . . . . 3 Gunslinging . | . . . . . Exploded 3 | . . . . 3 Melee . | . . . . . Uniques/NPCs Destroyed . | . . . . . Combat | -11 -10 -10 -10 -9 -------- Run | Yrd Mat Min Exi Min Hostile Shots Fired 41 | . 2 . . 39 Missed 12 | . 1 . . 11 Hits 29 | . 1 . . 28 Projectile 29 | . 1 . . 28 AOE 16 | . . . . 16 Critical Strikes 1 | . . . . 1 Damage Taken 765 | . 52 . . 713 Core 258 | . . . . 258 Absorbed by Shields . | . . . . . Redirected to Shielding 53 | . . . . 53 Core Remaining (%) 100 | 100 . . . . Volleys Fired 10 | . 5 . . 5 Largest 2 | . 2 . . 2 Hottest 60 | . 60 . . 60 Shots Fired 19 | . 10 . . 9 Gun 16 | . 10 . . 6 Cannon . | . . . . . Launcher 3 | . . . . 3 Special . | . . . . . Kinetic 10 | . 5 . . 5 Thermal . | . . . . . Explosive 3 | . . . . 3 Electromagnetic 6 | . 5 . . 1 Robot Hit Streak 3 | . 1 . . 3 Robot Miss Streak 5 | . 5 . . 2 Penetration Max . | . . . . . Secondary Targets . | . . . . . Shots Hit Robots 6 | . 1 . . 5 Core Hits 8 | . . . . 8 Critical Kills . | . . . . . Critical Parts Destroyed . | . . . . . Critical Strikes . | . . . . . Melee Attacks . | . . . . . Impact . | . . . . . Slashing . | . . . . . Piercing . | . . . . . Sneak Attacks . | . . . . . Combat Hostiles . | . . . . . Follow-up Attacks . | . . . . . Damage Inflicted 269 | . 59 . . 210 Guns 41 | . 22 . . 19 Cannons . | . . . . . Explosions 228 | . 37 . . 191 Melee . | . . . . . Ramming . | . . . . . Kinetic 9 | . . . . 9 Thermal 37 | . 37 . . . Explosive 191 | . . . . 191 Electromagnetic 32 | . 22 . . 10 Impact . | . . . . . Slashing . | . . . . . Piercing . | . . . . . Highest Corruption . | . . . . . Average Corruption . | . . . . . Corruption Purged . | . . . . . Corruption Blocked . | . . . . . Overload Shots . | . . . . . Overflow Damage 34 | . 7 . . 27 Projectiles . | . . . . . Explosions 34 | . 7 . . 27 Melee . | . . . . . Knockbacks . | . . . . . Impact . | . . . . . Kinetic . | . . . . . Secondary . | . . . . . Self-Inflicted Damage 39 | . 39 . . . Shots 1 | . 1 . . . Rammed . | . . . . . Targets Rammed . | . . . . . Kicked . | . . . . . Crushed . | . . . . . Highest Temperature 40 | . 40 . . 20 Average Temperature 15 | . 19 . . 8 Received Heat Transfer 9 | . 9 . . . Siege Activations . | . . . . . Martial Activations . | . . . . . Shielding Activations . | . . . . . Robots Disrupted . | . . . . . Combat Hostiles . | . . . . . Robots Corrupted . | . . . . . Combat Hostiles . | . . . . . Parts Fried . | . . . . . Impact Corruptions . | . . . . . Robots Melted . | . . . . . Combat Hostiles . | . . . . . Parts Melted . | . . . . . Heat Transferred 50 | . 50 . . . Parts Sabotaged . | . . . . . Parts Stolen . | . . . . . Parts Stripped . | . . . . . Power Chain Reactions 1 | . 1 . . . Alert | -11 -10 -10 -10 -9 ------- Run | Yrd Mat Min Exi Min Maximum Alert Level . | . . . . . Low Security (%) 100 | 100 100 100 . 100 Level 1 . | . . . . . Level 2 . | . . . . . Level 3 . | . . . . . Level 4 . | . . . . . Level 5 . | . . . . . High Security . | . . . . . Max Security . | . . . . . Peak Influence 11 | . 11 . . 3 Initial . | . . . . . Average . | . 1 . . . Influence Increases 15 | . 11 . . 4 Successful Hack 6 | . 6 . . . Destroy Structure 9 | . 5 . . 4 Influence Decreases 15 | . 10 1 . 4 Entered New Map 1 | . . 1 . . Time Decay 10 | . 10 . . . Lost Part 4 | . . . . 4 Squads Dispatched 1 | . 1 . . . Investigation . | . . . . . Extermination . | . . . . . Reinforcement 1 | . 1 . . . Assault . | . . . . . Garrison . | . . . . . Intercept . | . . . . . Searches Triggered . | . . . . . Construction Impeded . | . . . . . Haulers Reinforced . | . . . . . Active Scanning Responses . | . . . . . Cargo Convoy Interrupts . | . . . . . Stealth | -11 -10 -10 -10 -9 --------- Run | Yrd Mat Min Exi Min Distress Signals . | . . . . . Communications Jammed . | . . . . . Distress Signals . | . . . . . Times Spotted 15 | . 4 . . 11 Peak Tracking Total 13 | . 3 . . 13 Tactical Retreats 1 | . . . . 1 Traps | -11 -10 -10 -10 -9 ------- Run | Yrd Mat Min Exi Min Traps Triggered . | . . . . . Indirectly . | . . . . . Trap Hack Attempts . | . . . . . Triggered . | . . . . . Disarmed . | . . . . . Reprogrammed . | . . . . . Reused . | . . . . . Traps Extracted . | . . . . . Installed . | . . . . . Triggered . | . . . . . Machines | -11 -10 -10 -10 -9 ---------- Run | Yrd Mat Min Exi Min Machines Disabled . | . . . . . Max in Single Turn . | . . . . . Machines Repaired . | . . . . . Machines Dismantled . | . . . . . Machines Sabotaged . | . . . . . Overloaded Fab Kills . | . . . . . Hacking | -11 -10 -10 -10 -9 --------- Run | Yrd Mat Min Exi Min Machines Accessed 3 | . 1 . 2 . Terminals 1 | . 1 . . . Fabricators . | . . . . . Repair Stations . | . . . . . Recycling Units . | . . . . . Scanalyzers . | . . . . . Garrison Access . | . . . . . Total Hacks 10 | . 5 . 5 . Successful 7 | . 2 . 5 . Failed 3 | . 3 . . . Catastrophic . | . . . . . Database Lockouts . | . . . . . Manual 4 | . 3 . 1 . Terminals 5 | . 5 . . . Fabricators . | . . . . . Repair Stations . | . . . . . Recycling Units . | . . . . . Scanalyzers . | . . . . . Garrison Access . | . . . . . Terminal Hacks 6 | . 1 . 5 . Record 4 | . . . 4 . Alert Level 1 | . 1 . . . Proto ID Catalog 1 | . . . 1 . Fabricator Hacks . | . . . . . Repair Station Hacks . | . . . . . Recycling Unit Hacks . | . . . . . Scanalyzer . | . . . . . Garrison Access Hacks . | . . . . . Unauthorized Hacks 1 | . 1 . . . Terminals 1 | . 1 . . . Assimilate 1 | . 1 . . . Fabricators . | . . . . . Repair Stations . | . . . . . Recycling Units . | . . . . . Scanalyzers . | . . . . . Garrison Access . | . . . . . Data Cores Recovered . | . . . . . Used . | . . . . . Hacking Detections 1 | . 1 . . . Full Trace Events . | . . . . . Feedback Events . | . . . . . Feedback Blocked . | . . . . . Robot Schematics Acquired . | . . . . . Robots Built . | . . . . . Authchips . | . . . . . Time . | . . . . . Total Robot Build Rating . | . . . . . Part Schematics Acquired . | . . . . . Parts Built . | . . . . . Authchips . | . . . . . Time . | . . . . . Total Part Build Rating . | . . . . . Parts Repaired . | . . . . . Time . | . . . . . Parts Recycled . | . . . . . Recycled Matter . | . . . . . Retrieved Matter . | . . . . . Retrieved Components . | . . . . . Parts Scanalyzed . | . . . . . Part Schematics Acquired . | . . . . . Parts Damaged . | . . . . . Bothacking | -11 -10 -10 -10 -9 ------------ Run | Yrd Mat Min Exi Min Used RIF Installer . | . . . . . Robots Hacked . | . . . . . Non-combat . | . . . . . Combat . | . . . . . Robot Hacks Applied . | . . . . . Relay Couplers Released . | . . . . . Fabnet Peak Effective % . | . . . . . Robots Rewired . | . . . . . Allies Hacked . | . . . . . Hacks Repelled . | . . . . . Allies | -11 -10 -10 -10 -9 -------- Run | Yrd Mat Min Exi Min Total Allies . | . . . . . Largest Group . | . . . . . Highest-Rated Group . | . . . . . Highest-Rated Ally . | . . . . . Total Orders . | . . . . . Ally Attacks . | . . . . . Total Damage . | . . . . . Kills . | . . . . . Allies Corrupted . | . . . . . Allies Melted . | . . . . . Intel | -11 -10 -10 -10 -9 ------- Run | Yrd Mat Min Exi Min Active Infowar (turns) . | . . . . . Robot Analysis Total . | . . . . . Derelict Logs Recovered . | . . . . . Drone Launches . | . . . . . Drone Recoveries . | . . . . . Exploration | -11 -10 -10 -10 -9 ------------- Run | Yrd Mat Min Exi Min Turns Passed 946 | 84 95 39 678 50 Spaces Moved 744 | 62 65 33 560 24 Core 7 | 7 . . . . Treads . | . . . . . Legs 737 | 55 65 33 560 24 Wheels . | . . . . . Hover . | . . . . . Flight . | . . . . . Fastest Speed 50 | 50 120 120 120 120 Average Speed 119 | 112 120 120 120 120 Slowest Speed 120 | 120 120 120 120 120 Overloaded Moves . | . . . . . Propulsion Burnouts . | . . . . . Robots Hopped . | . . . . . Potential Cave-ins . | . . . . . Cave-ins Triggered . | . . . . . Exploration Rate (%) 25 | 5 20 6 91 7 Regions Visited 4 Branch Regions 3 Pre-discovered Areas 2 | . . 1 1 . Known Exits Taken . | . . . . . Unknown Exits Taken 4 | 1 1 1 1 . Scrap Searched . | . . . . . Spaces Dug . | . . . . . Terrain Destroyed 13 | . 4 . . 9 Melee . | . . . . . Projectile . | . . . . . AOE 13 | . 4 . . 9 Terrain Rammed . | . . . . . Walls Destroyed . | . . . . . Machines Disabled . | . . . . . Actions | -11 -10 -10 -10 -9 --------- Run | Yrd Mat Min Exi Min Total 784 | 74 72 32 568 38 Wait 8 | . 2 . . 6 Move 740 | 61 64 32 559 24 Hop . | . . . . . Pick Up 11 | 7 . . 3 1 Fast Attach 6 | 5 1 . . . Attach 2 | 1 . . . 1 Detach . | . . . . . Swap . | . . . . . Drop 6 | . . . 5 1 Fire 10 | . 5 . . 5 Melee . | . . . . . Ram . | . . . . . Kick . | . . . . . Crush . | . . . . . Escape Stasis . | . . . . . Rewire 1 | . . . 1 . Trap . | . . . . . Miscellaneous . | . . . . . Route ------- -11/Scrapyard -10/Materials -10/Mines -10/Exiles (discovered 2 exits: [*Min x2]) -9/Mines History --------- Turn | Location | Event 3 | -11/Scrapyard | Discovered new exit (range 15) 85 | -11/Scrapyard | Entered Materials 175 | -10/Materials | Discovered new exit (range 5) 180 | -10/Materials | Entered Mines 181 | -10/Mines | Learned location of Storage (-9) 213 | -10/Mines | Deemed a non-threat by the Exiles lab entrance 214 | -10/Mines | Discovered new exit (range 5) 219 | -10/Mines | Entered Exiles 247 | -10/Exiles | Met 8R-AWN 271 | -10/Exiles | Met EX-HEX 314 | -10/Exiles | Build established: Mutant 318 | -10/Exiles | Met EX-DEC 343 | -10/Exiles | Learned location of Zion (-6) 380 | -10/Exiles | Met EX-BIN 397 | -10/Exiles | Aligned with FarCom system 398 | -10/Exiles | Given EX-Vault access code 441 | -10/Exiles | Opened EX-Vault 457 | -10/Exiles | Found Cloak of Protection 467 | -10/Exiles | Found AWS/Thermal 475 | -10/Exiles | Found XL Autogun Array 500 | -10/Exiles | Warned to stay clear of 0b10 Research branches 581 | -10/Exiles | Discovered new exit (range 14) 679 | -10/Exiles | Visited The Gauntlet 880 | -10/Exiles | Discovered new exit (range 14) 897 | -10/Exiles | Stole three prototypes: Cloak of Protection, AWS/Thermal, XL Autogun Array 897 | -10/Exiles | Entered Mines 898 | -9/Mines | Assembled infested the area 898 | -9/Mines | YI-UF0 nonchalantly dropped a Grenade Launcher on the ground 942 | -9/Mines | Core integrity fell below 50% 947 | -9/Mines | Destroyed by YI-UF0 with YI-UF0's Doublenader Last Messages --------------- Dropped Lgt. Ion Engine. Acquired Grenade Launcher. YI-UF0 mumbles something. EM Pulse Gun destroyed. The unstable cave ceiling collapses. Aluminum Leg destroyed. YI-UF0: "BADABOOM!" as-62681 destroyed. Destroyed Asb. Hover Unit. The unstable cave ceiling collapses. as-07577 destroyed. as-75969 destroyed. as-65841 destroyed. Weapon Shielding destroyed. Destroyed Asb. Hover Unit. as-12193 destroyed. Grenade Launcher destroyed. Ion Engine destroyed. Lgt. Assault Rifle destroyed. The unstable cave ceiling collapses. Map ----- +----------------------------------------------------+ | | | | | | | | | | | | | | | | | | | | | | | | | | | | | ??????????????????????????????????????????????? | | ??????????????????????????????????????????????? | | ??????????????????????????????????????????????? | | ??????????????????????????????????????????????? | | ??????????????????????????????????????????????? | | ??????????????????????????????????????????????? | | ???????????????????#########??????????????????? | | ??????????????????## #??????????????????? | | ?????????????????## ##?????????????????? | | ?????????????????# #?????????????????? | | ????????????????## #?????????????????? | | ????????????????# @ #???????????????????? | | ???????????????## #???????????????????? | | ???????????????# #???????????????????? | | ???????????# #???????????????????? | | ???????????# ##???????????????????? | | ???????????# g ###????????????????????? | | ??????????# #??????????????????????? | | ??????????# ??????????????????????? | | ??????????# # #??????????????????????? | | ??????????# # # ??????????????????????? | | ??????????# ?## ??????????????????????? | | ?????????? ???# % a ??????????????????????? | | ????????????????# a ?????????????????????? | | ????????????????# # ?????????????????????? | | ????????????????### ## ?????????????????????? | | ?????????????????? ?? ????????????????????? | | ??????????????????? ??" ?????????????????????? | | ???????????????????#?? ???????????????????????? | | ??????????????????????????????????????????????? | | ??????????????????????????????????????????????? | | ??????????????????????????????????????????????? | | ??????????????????????????????????????????????? | | ??????????????????????????????????????????????? | | ??????????????????????????????????????????????? | | ??????????????????????????????????????????????? | +----------------------------------------------------+ Best States ------------- Heat Dissipation 25 Energy Generation 10 Energy Capacity 250 Matter Stores 300 Matter Capacity 300 Sight Range 16 Terrain Scan Density 10 Weapon Shielding 33 Evasion (%) 55 Item Schematics ----------------- None Robot Schematics ------------------ None Fabricated ------------ Nothing Repaired ---------- Nothing Alien Tech Used ----------------- None Achievements -------------- None Challenges ------------ None Game ------ Seed BurstDispersalEngine Manual? 0 Play Time 00:09:57 Cumulative 59.9 hours Start 2025.06.02 @ 11:01:11 End 2025.06.02 @ 11:10:21 Sessions 1 Manual Loads 0 Difficulty Rogue Special Mode None Game No. 37 Rogue 37 Adventurer 0 Explorer 0 Win Type - Total 0 Types 0/0/0/0/0/0/0/0/0/0 Lore% 30 Gallery% 38 Achievement% 37 Wizard Run 0 Options --------- Layout 1 ASCII 0 Keyboard 0 Movement Arrows Keybinds 0 Fullscreen 1 Font 24/Smallcaps Map View 50x35 Zoom Use 0% Tactical HUD 0 Map Filters NONE Filters NONE Steam 1 RUN: e2b92cc4-5fbd-490e-9a83-d41603e3eb07